fUST/lending_fUST_20250816
["ID","MTS","AMOUNT","RATE_DAILY","PERIOD"]
[379459366,1755287432847,-40.63486824,0.00017932,2]
[379459367,1755287432856,-166.167385,0.00017977,2]
[379459368,1755287432866,-2426.80158129,0.00018,2]
[379459369,1755287432877,-166.167385,0.00018022,2]
[379459370,1755287432887,-166.167385,0.00018067,2]
[379459371,1755287432898,-166.167385,0.00018112,2]
[379459372,1755287432907,-160.0,0.00018157,2]
[379459373,1755287432917,-222.56333,0.0001831,2]
[379459374,1755287432928,-268.45347032,0.00018329,2]
[379459375,1755287432938,-1200.0,0.00018894,2]
[379459376,1755287432948,-666.0,0.00019178,2]
[379459378,1755287432958,-300.0,0.0001927,2]
[379459379,1755287432967,-500.44144264,0.00019271,2]
[379459381,1755287432976,-500.0,0.00019271,2]
[379459383,1755287432985,-500.0,0.00019271,2]
[379459385,1755287432994,-500.0,0.00019271,2]
[379459387,1755287433004,-500.0,0.00019271,2]
[379459389,1755287433013,-289.76601394,0.00019271,2]
[379459391,1755287433023,-500.0,0.00019271,2]
[379459392,1755287433032,-500.0,0.00019271,2]
[379459393,1755287433043,-500.0,0.00019271,2]
[379459394,1755287433053,-500.0,0.00019271,2]
[379459395,1755287433063,-500.0,0.00019271,2]
[379459396,1755287433073,-500.0,0.00019271,2]
[379459397,1755287433087,-500.0,0.00019271,2]
[379459398,1755287433098,-167.4235,0.00019271,2]
[379459399,1755287433107,-500.0,0.00019271,2]
[379459400,1755287433117,-500.0,0.00019271,2]
[379459401,1755287433127,-500.0,0.00019271,2]
[379459402,1755287433138,-250.0,0.00019271,2]
[379459403,1755287433149,-500.0,0.00019271,2]
[379459404,1755287433159,-500.0,0.00019271,2]
[379459405,1755287433170,-500.0,0.00019271,2]
[379459406,1755287433181,-279.58686188,0.00019271,2]
[379459407,1755287433191,-1200.0,0.00019271,2]
[379459408,1755287433200,-300.0,0.00019271,2]
[379459409,1755287433210,-8804.80827051,0.00019272,2]
[379459415,1755287435609,209.14092,0.00027,120]
[379459433,1755287438867,-87.52192266,0.00019272,2]
[379459437,1755287438899,-41107.66980683,0.00019272,2]
[379459439,1755287438909,-769.60553921,0.00019528,2]
[379459441,1755287438920,-151.0,0.00019628,2]
[379459443,1755287438931,-151.0,0.00019628,2]
[379459445,1755287438942,-151.0,0.00019628,2]
[379459448,1755287438954,-151.0,0.00019628,2]
[379459450,1755287438965,-151.0,0.00019628,2]
[379459452,1755287438976,-151.0,0.00019628,2]
[379459454,1755287438988,-500.0,0.00019628,2]
[379459456,1755287438999,-151.0,0.00019628,2]
[379459458,1755287439009,-500.0,0.00019628,2]
[379459460,1755287439019,-151.0,0.00019628,2]
[379459462,1755287439029,-500.0,0.00019628,2]
[379459464,1755287439039,-151.0,0.00019628,2]
[379459466,1755287439049,-151.0,0.00019628,2]
[379459468,1755287439059,-500.0,0.00019628,2]
[379459470,1755287439070,-151.0,0.00019628,2]
[379459472,1755287439088,-500.0,0.00019628,2]
[379459474,1755287439099,-151.0,0.00019628,2]
[379459476,1755287439110,-500.0,0.00019628,2]
[379459478,1755287439122,-151.0,0.00019628,2]
[379459480,1755287439134,-500.0,0.00019628,2]
[379459483,1755287439146,-500.0,0.00019628,2]
[379459485,1755287439158,-151.0,0.00019628,2]
[379459487,1755287439168,-500.0,0.00019628,2]
[379459489,1755287439177,-151.0,0.00019628,2]
[379459491,1755287439187,-500.0,0.00019628,2]
[379459493,1755287439197,-500.0,0.00019628,2]
[379459495,1755287439207,-151.0,0.00019628,2]
[379459497,1755287439218,-151.0,0.00019628,2]
[379459499,1755287439228,-500.0,0.00019628,2]
[379459501,1755287439239,-151.0,0.00019628,2]
[379459503,1755287439250,-500.0,0.00019628,2]
[379459505,1755287439260,-500.0,0.00019628,2]
[379459507,1755287439270,-500.0,0.00019628,2]
[379459509,1755287439280,-500.0,0.00019628,2]
[379459511,1755287439290,-500.0,0.00019628,2]
[379459512,1755287439301,-200.0,0.00019656,20]
[379459514,1755287439311,-200.0,0.00019656,20]
[379459516,1755287439321,-200.0,0.00019656,20]
[379459517,1755287439332,-200.0,0.00019656,20]
[379459518,1755287439342,-200.0,0.00019656,20]
[379459519,1755287439354,-200.0,0.00019656,20]
[379459520,1755287439365,-704.41268896,0.00019763,2]
[379459521,1755287439376,-160.157208,0.00019863,2]
[379459522,1755287439389,-9951.70791188,0.000199,2]
[379459524,1755287439400,-500.0,0.0001991,2]
[379459525,1755287439410,-500.0,0.0001991,2]
[379459526,1755287439422,-339.30327965,0.0001991,2]
[379459527,1755287439432,-500.0,0.0001991,2]
[379459528,1755287439442,-500.0,0.0001991,2]
[379459529,1755287439453,-500.0,0.0001991,2]
[379459530,1755287439463,-500.0,0.0001991,2]
[379459531,1755287439474,-500.0,0.00019915,2]
[379459532,1755287439484,-365.60859336,0.00020064,2]
[379459533,1755287439494,-500.0,0.00020064,2]
[379459535,1755287439504,-531.31961904,0.00020064,2]
[379459537,1755287439515,-500.0,0.0002007,2]
[379459539,1755287439525,-500.0,0.0002007,2]
[379459541,1755287439535,-1295.09624321,0.00020084,2]
[379459543,1755287439544,-500.0,0.00020183,2]
[379459545,1755287439555,-1991.39646177,0.00020185,2]
[379459547,1755287439566,-500.0,0.00020317,2]
[379459549,1755287439576,-260.75511113,0.00020414,2]
[379459551,1755287439586,-500.0,0.00020414,2]
[379459553,1755287439596,-500.0,0.00020414,2]
[379459555,1755287439606,-500.0,0.00020414,2]
[379459557,1755287439616,-500.0,0.00020414,2]
[379459559,1755287439626,-500.0,0.00020414,2]
[379459561,1755287439636,-500.0,0.00020414,2]
[379459563,1755287439646,-500.0,0.00020414,2]
[379459566,1755287439656,-500.0,0.00020414,2]
[379459568,1755287439666,-500.0,0.00020414,2]
[379459570,1755287439677,-337.14259555,0.00020414,2]
[379459572,1755287439686,-500.0,0.00020414,2]
[379459574,1755287439696,-500.0,0.00020414,2]
[379459576,1755287439706,-500.0,0.00020414,2]
[379459578,1755287439717,-500.0,0.00020414,2]
[379459580,1755287439727,-500.0,0.00020414,2]
[379459582,1755287439737,-500.0,0.00020414,2]
[379459584,1755287439747,-500.0,0.00020414,2]
[379459586,1755287439757,-500.0,0.00020414,2]
[379459588,1755287439768,-500.0,0.00020414,2]
[379459591,1755287439779,-9951.7079117,0.00020416,2]
[379459593,1755287439790,-334.68504628,0.00020612,2]
[379459595,1755287439800,-1000.0,0.00020618,2]
[379459597,1755287439811,-1332.0,0.00020697,2]
[379459599,1755287439821,-922.21794459,0.00020731,2]
[379459601,1755287439831,-233.23989062,0.0002082,2]
[379459603,1755287439842,-1000.0,0.00020865,2]
[379459604,1755287439853,-704.4126889,0.00020865,2]
[379459605,1755287439863,-207.45011972,0.000209,2]
[379459606,1755287439874,-9951.7079117,0.00020932,2]
[379459607,1755287439884,-528.28344625,0.0002097,2]
[379459608,1755287439894,-160.0,0.00020977,2]
[379459609,1755287439904,-232.08354597,0.00020977,2]
[379459610,1755287439914,-417.15472785,0.00020977,2]
[379459611,1755287439924,-160.0,0.00020977,2]
[379459612,1755287439935,-843.47195277,0.00020977,2]
[379459614,1755287439945,-160.0,0.00020977,2]
[379459616,1755287439954,-216.77912109,0.00020977,2]
[379459634,1755287440095,-215.63758983,0.00020977,2]
[379459637,1755287440150,-263.54304095,0.00020997,2]
[379459639,1755287440160,-420.0,0.00020998,2]
[379459641,1755287440170,-1323.0,0.00020999,2]
[379459643,1755287440179,-1000.0,0.00021166,2]
[379459645,1755287440189,-237.0,0.00021198,2]
[379459648,1755287440198,-160.0,0.00021212,2]
[379459651,1755287440207,-769.60553921,0.00021214,2]
[379459653,1755287440216,-1295.0962432,0.00021263,2]
[379459655,1755287440225,-343.27,0.00021438,3]
[379459657,1755287440234,-171.64,0.00021438,3]
[379459659,1755287440243,-514.92,0.00021438,3]
[379459661,1755287440253,-9951.7079117,0.00021448,2]
[379459663,1755287440263,-200.0,0.00021583,20]
[379459665,1755287440272,-200.0,0.00021583,20]
[379459667,1755287440282,-200.0,0.00021583,20]
[379459669,1755287440291,-200.0,0.00021583,20]
[379459671,1755287440300,-200.0,0.00021583,20]
[379459673,1755287440310,-200.0,0.00021583,20]
[379459675,1755287440319,-200.0,0.00021583,20]
[379459677,1755287440328,-280.0,0.00021583,20]
[379459679,1755287440337,-321.89,0.0002165,2]
[379459681,1755287440346,-260.0,0.0002176,2]
[379459683,1755287440356,-9951.7079117,0.00021965,2]
[379459685,1755287440366,-704.4126889,0.00021967,2]
[379459687,1755287440375,-238.0,0.00022,7]
[379459689,1755287440384,-500.0,0.00022012,2]
[379459691,1755287440395,-360.0,0.00022308,2]
[379459693,1755287440403,-151.0,0.00022408,2]
[379459695,1755287440412,-151.0,0.00022408,2]
[379459696,1755287440422,-151.0,0.00022408,2]
[379459698,1755287440431,-151.0,0.00022408,2]
[379459700,1755287440439,-151.0,0.00022408,2]
[379459702,1755287440448,-500.0,0.00022408,2]
[379459704,1755287440458,-151.0,0.00022408,2]
[379459706,1755287440466,-151.0,0.00022408,2]
[379459708,1755287440476,-151.22279765,0.00022408,2]
[379459710,1755287440484,-151.0,0.00022408,2]
[379459712,1755287440493,-151.0,0.00022408,2]
[379459713,1755287440502,-151.2655407,0.00022408,2]
[379459714,1755287440511,-269.4039774,0.00022408,2]
[379459715,1755287440520,-151.0,0.00022408,2]
[379459716,1755287440529,-151.0,0.00022408,2]
[379459717,1755287440538,-500.0,0.00022408,2]
[379459718,1755287440547,-151.0,0.00022408,2]
[379459719,1755287440557,-151.0,0.00022408,2]
[379459720,1755287440566,-151.0,0.00022408,2]
[379459721,1755287440575,-151.0,0.00022408,2]
[379459722,1755287440584,-151.0,0.00022408,2]
[379459723,1755287440593,-151.0,0.00022408,2]
[379459724,1755287440602,-151.0,0.00022408,2]
[379459725,1755287440611,-151.0,0.00022408,2]
[379459726,1755287440620,-500.0,0.00022408,2]
[379459727,1755287440630,-151.0,0.00022408,2]
[379459728,1755287440640,-1295.0962432,0.00022442,2]
[379459729,1755287440650,-9951.7079117,0.00022481,2]
[379459730,1755287440660,-356.889,0.00022613,2]
[379459731,1755287440669,-151.0,0.00022682,2]
[379459732,1755287440679,-500.0,0.00022682,2]
[379459733,1755287440689,-151.0,0.00022682,2]
[379459734,1755287440698,-151.0,0.00022682,2]
[379459735,1755287440708,-151.0,0.00022682,2]
[379459736,1755287440717,-151.0,0.00022682,2]
[379459737,1755287440727,-151.0,0.00022682,2]
[379459738,1755287440736,-500.0,0.00022682,2]
[379459739,1755287440745,-151.0,0.00022682,2]
[379459740,1755287440754,-151.0,0.00022682,2]
[379459741,1755287440765,-151.0,0.00022682,2]
[379459742,1755287440774,-198.0,0.00022682,2]
[379459743,1755287440784,-151.0,0.00022682,2]
[379459744,1755287440793,-500.0,0.00022682,2]
[379459745,1755287440803,-686.54,0.00022808,3]
[379459746,1755287440812,-343.28,0.00022808,3]
[379459747,1755287440821,-460.0,0.00022856,2]
[379459748,1755287440831,-587.0,0.00022882,2]
[379459749,1755287440840,-769.60553921,0.000229,2]
[379459750,1755287440849,-151.0,0.00022956,2]
[379459751,1755287440859,-500.0,0.00022956,2]
[379459752,1755287440868,-151.0,0.00022956,2]
[379459753,1755287440877,-245.0,0.00022956,2]
[379459754,1755287440887,-151.0,0.00022956,2]
[379459755,1755287440897,-151.0,0.00022956,2]
[379459756,1755287440906,-453.0,0.00022956,2]
[379459757,1755287440915,-151.0,0.00022956,2]
[379459758,1755287440925,-151.0,0.00022956,2]
[379459759,1755287440934,-151.0,0.00022956,2]
[379459761,1755287440943,-151.0,0.00022956,2]
[379459762,1755287440952,-151.0,0.00022956,2]
[379459763,1755287440962,-9951.7079117,0.00022997,2]
[379459764,1755287440972,-160.0,0.00023,2]
[379459765,1755287440981,-4174.62,0.00023,7]
[379459766,1755287440990,-972.0,0.00023065,2]
[379459767,1755287440999,-408.0,0.00023065,2]
[379459768,1755287441009,-636.0,0.00023065,2]
[379459769,1755287441018,-2152.0,0.00023065,2]
[379459770,1755287441027,-159.73,0.00023065,2]
[379459771,1755287441036,-704.4126889,0.00023069,2]
[379459772,1755287441046,-500.0,0.00023113,2]
[379459773,1755287441055,-151.0,0.0002323,2]
[379459774,1755287441064,-151.0,0.0002323,2]
[379459775,1755287441074,-151.0,0.0002323,2]
[379459777,1755287441091,-235.55944359,0.0002323,2]
[379459778,1755287441109,-197.999999,0.0002323,2]
[379459779,1755287441118,-262.14830106,0.0002323,2]
[379459780,1755287441128,-151.0,0.0002323,2]
[379459781,1755287441137,-151.0,0.0002323,2]
[379459782,1755287441147,-560.0,0.00023404,2]
[379459783,1755287441156,-151.0,0.00023504,2]
[379459784,1755287441166,-151.0,0.00023504,2]
[379459786,1755287441174,-251.51895134,0.00023504,2]
[379459787,1755287441184,-245.0,0.00023504,2]
[379459788,1755287441194,-9951.7079117,0.00023513,2]
[379459789,1755287441204,-643.78,0.00023618,2]
[379459790,1755287441213,-1295.0962432,0.00023621,2]
[379459791,1755287441222,-200.0,0.00023699,20]
[379459792,1755287441232,-200.0,0.00023699,20]
[379459793,1755287441242,-200.0,0.00023699,20]
[379459794,1755287441251,-200.0,0.00023699,20]
[379459795,1755287441261,-200.0,0.00023699,20]
[379459796,1755287441270,-200.0,0.00023699,20]
[379459798,1755287441279,-200.0,0.00023699,20]
[379459799,1755287441289,-200.0,0.00023699,20]
[379459801,1755287441298,-200.0,0.00023699,20]
[379459802,1755287441309,-200.0,0.00023699,20]
[379459804,1755287441318,-350.0,0.00023699,20]
[379459806,1755287441328,-177.59475323,0.00023732,2]
[379459807,1755287441338,-1775.94753238,0.00023751,2]
[379459808,1755287441347,-1775.94753238,0.0002377,2]
[379459809,1755287441357,-198.0,0.00023778,2]
[379459810,1755287441366,-245.0,0.00023778,2]
[379459811,1755287441376,-177.59475323,0.00023779,2]
[379459813,1755287441386,-660.0,0.00023952,2]
[379459815,1755287441396,-216.77912109,0.00024,10]
[379459817,1755287441406,-9951.7079117,0.00024029,2]
[379459819,1755287441415,-238.0,0.000241,7]
[379459821,1755287441425,-704.4126889,0.00024171,2]
[379459823,1755287441434,-1300.0,0.00024293,2]
[379459825,1755287441443,-160.157208,0.00024429,2]
[379459827,1755287441452,-151.0,0.000245,9]
[379459829,1755287441461,-4174.62,0.000245,7]
[379459831,1755287441470,-760.0,0.000245,2]
[379459833,1755287441479,-9951.7079117,0.00024545,2]
[379459835,1755287441489,-460.0,0.00024657,2]
[379459837,1755287441498,-500.0,0.00024657,60]
[379459839,1755287441507,-500.0,0.00024657,60]
[379459841,1755287441517,-500.0,0.00024657,60]
[379459843,1755287441526,-500.0,0.00024657,60]
[379459845,1755287441536,-500.0,0.00024657,60]
[379459847,1755287441545,-500.0,0.00024657,60]
[379459848,1755287441554,-500.0,0.00024657,60]
[379459850,1755287441563,-496.02,0.00024657,60]
[379459852,1755287441572,-500.0,0.00024657,60]
[379459854,1755287441582,-500.0,0.00024657,60]
[379459856,1755287441591,-500.0,0.00024657,60]
[379459858,1755287441601,-500.0,0.00024657,60]
[379459860,1755287441610,-500.0,0.00024657,60]
[379459862,1755287441619,-500.0,0.00024657,60]
[379459864,1755287441628,-500.0,0.00024657,60]
[379459866,1755287441637,-500.0,0.00024657,60]
[379459868,1755287441647,-500.0,0.00024657,60]
[379459870,1755287441657,-500.0,0.00024657,60]
[379459872,1755287441666,-500.0,0.00024657,60]
[379459874,1755287441676,-500.0,0.00024657,60]
[379459876,1755287441685,-500.0,0.00024657,60]
[379459877,1755287441695,-500.0,0.00024657,60]
[379459879,1755287441704,-500.0,0.00024657,60]
[379459881,1755287441713,-500.0,0.00024657,60]
[379459883,1755287441722,-500.0,0.00024657,60]
[379459885,1755287441731,-593.29237807,0.00024657,60]
[379459887,1755287441740,-500.0,0.00024657,60]
[379459889,1755287441750,-500.0,0.00024657,60]
[379459891,1755287441759,-200.0,0.00024658,15]
[379459893,1755287441768,-380.0,0.00024658,2]
[379459895,1755287441778,-200.0,0.00024658,2]
[379459897,1755287441787,-151.0,0.00024658,2]
[379459899,1755287441796,-500.0,0.00024658,2]
[379459901,1755287441806,-5550.34001896,0.000247,7]
[379459903,1755287441815,-13371.67895697,0.000247,2]
[379459905,1755287441824,-452.59136052,0.00024773,2]
[379459907,1755287441833,-500.0,0.00024773,2]
[379459909,1755287441842,-151.0,0.00024774,5]
[379459911,1755287441851,-153.0,0.00024795,2]
[379459913,1755287441860,-153.0,0.00024795,2]
[379459915,1755287441869,-153.0,0.00024795,2]
[379459917,1755287441878,-153.0,0.00024795,2]
[379459918,1755287441887,-153.0,0.00024795,2]
[379459920,1755287441897,-153.0,0.00024795,2]
[379459922,1755287441907,-153.0,0.00024795,2]
[379459924,1755287441917,-153.0,0.00024795,2]
[379459926,1755287441926,-153.0,0.00024795,2]
[379459928,1755287441936,-151.0,0.000248,7]
[379459930,1755287441946,-151.0,0.000248,7]
[379459932,1755287441955,-151.0,0.000248,7]
[379459934,1755287441964,-151.812763,0.000248,7]
[379459936,1755287441974,-151.0,0.000248,7]
[379459938,1755287441983,-12273.87,0.000248,7]
[379459940,1755287441992,-1295.0962432,0.000248,2]
[379459942,1755287442001,-843.47195277,0.000248,7]
[379459944,1755287442011,-160.0,0.000248,7]
[379459946,1755287442020,-417.15472785,0.000248,7]
[379459948,1755287442029,-160.0,0.000248,7]
[379459950,1755287442039,-160.0,0.000248,7]
[379459952,1755287442047,-232.08354597,0.000248,7]
[379459953,1755287442057,-160.0,0.000248,7]
[379459955,1755287442066,-462.0440047,0.000248,7]
[379459957,1755287442076,-216.77912109,0.000248,7]
[379459959,1755287442089,-155.18,0.00024822,7]
[379459961,1755287442098,-500.88930733,0.00024873,2]
[379459963,1755287442107,-645.34216857,0.00024873,2]
[379459965,1755287442116,-500.0,0.00024873,2]
[379459967,1755287442126,-500.0,0.00024873,2]
[379459969,1755287442136,-500.0,0.00024873,2]
[379459971,1755287442146,-509.5504893,0.00024873,2]
[379459973,1755287442155,-592.10698436,0.00024873,2]
[379459975,1755287442165,-150.0,0.00024873,2]
[379459977,1755287442174,-500.0,0.00024873,2]
[379459979,1755287442183,-500.0,0.00024873,2]
[379459981,1755287442193,-500.0,0.00024873,2]
[379459983,1755287442202,-500.0,0.00024873,2]
[379459985,1755287442211,-500.0,0.00024873,2]
[379459987,1755287442221,-500.0,0.00024873,2]
[379459989,1755287442230,-500.0,0.00024873,2]
[379459991,1755287442240,-500.0,0.00024873,2]
[379459993,1755287442249,-151.0,0.000249,7]
[379459995,1755287442258,-151.0,0.000249,7]
[379459997,1755287442268,-151.0,0.000249,7]
[379459999,1755287442277,-151.0,0.000249,7]
[379460001,1755287442286,-151.525067,0.000249,7]
[379460003,1755287442295,-18372.95,0.000249,2]
[379460005,1755287442305,-898763.824229,0.000249,2]
[379460006,1755287442314,-460.0,0.00024931,2]
[379460008,1755287442323,-500.0,0.00024932,2]
[379460010,1755287442332,-823.0,0.00024934,2]
[379460012,1755287442341,-713.5358871,0.00024977,2]
[379460014,1755287442350,-167.0,0.00025,7]
[379460016,1755287442359,-167.0,0.00025,7]
[379460018,1755287442368,-860.0,0.00025048,2]
[379460019,1755287442377,-9951.7079117,0.00025061,2]
[379460021,1755287442386,-500.0,0.00025206,2]
[379460023,1755287442394,-153.0,0.00025263,2]
[379460025,1755287442403,-153.0,0.00025263,2]
[379460027,1755287442412,-153.0,0.00025263,2]
[379460029,1755287442421,-153.0,0.00025263,2]
[379460031,1755287442430,-153.0,0.00025263,2]
[379460032,1755287442439,-153.0,0.00025263,2]
[379460034,1755287442449,-153.0,0.00025263,2]
[379460036,1755287442458,-153.0,0.00025263,2]
[379460038,1755287442467,-153.0,0.00025263,2]
[379460040,1755287442476,-153.0,0.00025263,2]
[379460042,1755287442485,-153.0,0.00025263,2]
[379460044,1755287442494,-153.0,0.00025263,2]
[379460046,1755287442504,-153.0,0.00025263,2]
[379460048,1755287442514,-153.0,0.00025263,2]
[379460050,1755287442523,-153.0,0.00025263,2]
[379460052,1755287442532,-153.0,0.00025263,2]
[379460054,1755287442541,-153.0,0.00025263,2]
[379460056,1755287442550,-153.0,0.00025263,2]
[379460058,1755287442559,-153.0,0.00025263,2]
[379460060,1755287442568,-153.0,0.00025263,2]
[379460062,1755287442576,-153.0,0.00025263,2]
[379460063,1755287442586,-153.0,0.00025263,2]
[379460065,1755287442595,-153.0,0.00025263,2]
[379460067,1755287442605,-153.0,0.00025263,2]
[379460069,1755287442615,-153.0,0.00025263,2]
[379460071,1755287442624,-153.0,0.00025263,2]
[379460073,1755287442634,-153.0,0.00025263,2]
[379460075,1755287442643,-153.0,0.00025263,2]
[379460077,1755287442653,-153.0,0.00025263,2]
[379460079,1755287442663,-153.0,0.00025263,2]
[379460081,1755287442673,-153.0,0.00025263,2]
[379460083,1755287442682,-153.0,0.00025263,2]
[379460085,1755287442691,-153.0,0.00025263,2]
[379460087,1755287442700,-153.0,0.00025263,2]
[379460089,1755287442709,-153.0,0.00025263,2]
[379460091,1755287442718,-153.0,0.00025263,2]
[379460093,1755287442727,-153.0,0.00025263,2]
[379460095,1755287442736,-153.0,0.00025263,2]
[379460096,1755287442745,-153.0,0.00025263,2]
[379460097,1755287442754,-153.0,0.00025263,2]
[379460098,1755287442764,-153.0,0.00025263,2]
[379460099,1755287442773,-153.0,0.00025263,2]
[379460100,1755287442783,-153.0,0.00025263,2]
[379460101,1755287442793,-153.0,0.00025263,2]
[379460102,1755287442802,-153.0,0.00025263,2]
[379460103,1755287442812,-153.0,0.00025263,2]
[379460104,1755287442821,-153.0,0.00025263,2]
[379460105,1755287442831,-153.0,0.00025263,2]
[379460106,1755287442840,-153.0,0.00025263,2]
[379460107,1755287442850,-153.0,0.00025263,2]
[379460108,1755287442861,-153.0,0.00025263,2]
[379460109,1755287442871,-153.0,0.00025263,2]
[379460110,1755287442880,-153.0,0.00025263,2]
[379460111,1755287442890,-153.0,0.00025263,2]
[379460112,1755287442900,-153.0,0.00025263,2]
[379460113,1755287442909,-153.0,0.00025263,2]
[379460114,1755287442919,-153.0,0.00025263,2]
[379460115,1755287442928,-153.0,0.00025263,2]
[379460116,1755287442938,-153.0,0.00025263,2]
[379460117,1755287442947,-153.0,0.00025263,2]
[379460118,1755287442957,-153.0,0.00025263,2]
[379460119,1755287442966,-153.0,0.00025263,2]
[379460120,1755287442976,-153.0,0.00025263,2]
[379460121,1755287442986,-153.0,0.00025263,2]
[379460122,1755287442995,-153.0,0.00025263,2]
[379460123,1755287443005,-153.0,0.00025263,2]
[379460124,1755287443015,-153.0,0.00025263,2]
[379460125,1755287443025,-153.0,0.00025263,2]
[379460126,1755287443034,-153.0,0.00025263,2]
[379460127,1755287443044,-153.0,0.00025263,2]
[379460128,1755287443053,-153.0,0.00025263,2]
[379460129,1755287443063,-153.0,0.00025263,2]
[379460130,1755287443073,-153.0,0.00025263,2]
[379460131,1755287443087,-153.0,0.00025263,2]
[379460132,1755287443097,-153.0,0.00025263,2]
[379460134,1755287443218,-153.0,0.00025263,2]
[379460135,1755287443229,-153.0,0.00025263,2]
[379460136,1755287443239,-153.0,0.00025263,2]
[379460137,1755287443249,-153.0,0.00025263,2]
[379460138,1755287443258,-153.0,0.00025263,2]
[379460140,1755287443268,-153.0,0.00025263,2]
[379460142,1755287443277,-153.0,0.00025263,2]
[379460143,1755287443286,-153.0,0.00025263,2]
[379460144,1755287443296,-153.0,0.00025263,2]
[379460145,1755287443306,-153.0,0.00025263,2]
[379460146,1755287443315,-704.4126889,0.00025273,2]
[379460147,1755287443324,-151.0,0.00025335,6]
[379460148,1755287443334,-1300.0,0.00025389,2]
[379460149,1755287443343,-250.0,0.00025421,2]
[379460150,1755287443352,-1000.0,0.00025421,2]
[379460151,1755287443362,-1676.55235133,0.00025477,2]
[379460152,1755287443372,-500.0,0.0002548,2]
[379460153,1755287443382,-9951.7079117,0.00025577,3]
[379460154,1755287443391,-965.67,0.00025586,2]
[379460155,1755287443401,-960.0,0.00025596,2]
[379460156,1755287443411,-843.47195277,0.000256,3]
[379460157,1755287443421,-160.0,0.000256,3]
[379460158,1755287443430,-417.15472785,0.000256,3]
[379460159,1755287443440,-160.0,0.000256,3]
[379460160,1755287443449,-160.0,0.000256,3]
[379460161,1755287443459,-232.08354597,0.000256,3]
[379460163,1755287443467,-160.0,0.000256,3]
[379460164,1755287443476,-462.0440047,0.000256,3]
[379460165,1755287443486,-216.77912109,0.000256,3]
[379460166,1755287443496,-500.0,0.00025638,2]
[379460167,1755287443505,-500.0,0.00025754,2]
[379460168,1755287443515,-4174.62,0.000258,7]
[379460169,1755287443524,-200.0,0.0002585,14]
[379460170,1755287443534,-168.0,0.0002589,7]
[379460171,1755287443544,-168.0,0.0002589,7]
[379460172,1755287443553,-151.0,0.00025896,6]
[379460173,1755287443563,-350.0,0.00025968,2]
[379460174,1755287443573,-1500.0,0.00025968,2]
[379460175,1755287443583,-18372.95,0.00026,2]
[379460176,1755287443593,-200.0,0.00026022,20]
[379460177,1755287443603,-200.0,0.00026022,20]
[379460178,1755287443613,-200.0,0.00026022,20]
[379460179,1755287443622,-200.0,0.00026022,20]
[379460180,1755287443632,-200.0,0.00026022,20]
[379460181,1755287443642,-200.0,0.00026022,20]
[379460182,1755287443652,-200.0,0.00026022,20]